[Event "Titled Tuesday Blitz November 01 Early 2022"]
[White "Dubov, Daniil"]
[Black "Postnikov, Daniil"]
[WhiteFideId "24126055"]
[BlackFideId "4166329"]
[WhiteElo "2791"]
[BlackElo "2261"]
[Result "1-0"]
[Round "01"]
[TimeControl "180+1"]
[Date "2022.11.01"]
[WhiteClock "0:00:42"]
[BlackClock "0:00:12"]

1. e4 {[%clk 0:02:58]}  e6 {[%clk 0:02:59]} 2. d4 {[%clk 0:02:29]}  d5 {[%clk 0:02:59]} 3. e5 {[%clk 0:02:30]}  c5 {[%clk 0:02:58]} 4. c3 {[%clk 0:01:45]}  Nc6 {[%clk 0:02:58]} 5. Nf3 {[%clk 0:01:45]}  Bd7 {[%clk 0:02:58]} 6. Na3 {[%clk 0:01:45]}  f6 {[%clk 0:02:56]} 7. Nc2 {[%clk 0:01:45]}  fxe5 {[%clk 0:02:56]} 8. dxe5 {[%clk 0:01:46]}  Qc7 {[%clk 0:02:56]} 9. Bf4 {[%clk 0:01:44]}  Nge7 {[%clk 0:02:54]} 10. Bd3 {[%clk 0:01:43]}  O-O-O {[%clk 0:02:53]} 11. O-O {[%clk 0:01:43]}  h6 {[%clk 0:02:34]} 12. Bg3 {[%clk 0:01:40]}  g5 {[%clk 0:02:31]} 13. h3 {[%clk 0:01:40]}  Bg7 {[%clk 0:02:31]} 14. Re1 {[%clk 0:01:40]}  Rdf8 {[%clk 0:02:29]} 15. b4 {[%clk 0:01:39]}  c4 {[%clk 0:02:26]} 16. Bf1 {[%clk 0:01:39]}  Nf5 {[%clk 0:02:25]} 17. Bh2 {[%clk 0:01:39]}  Rhg8 {[%clk 0:02:23]} 18. Ncd4 {[%clk 0:01:39]}  Ncxd4 {[%clk 0:02:17]} 19. Nxd4 {[%clk 0:01:40]}  Nxd4 {[%clk 0:02:12]} 20. Qxd4 {[%clk 0:01:39]}  Qb6 {[%clk 0:01:48]} 21. Qxb6 {[%clk 0:01:39]}  axb6 {[%clk 0:01:49]} 22. Be2 {[%clk 0:01:40]}  Ba4 {[%clk 0:01:47]} 23. Bh5 {[%clk 0:01:36]}  Be8 {[%clk 0:01:38]} 24. Bxe8 {[%clk 0:01:35]}  Rxe8 {[%clk 0:01:39]} 25. b5 {[%clk 0:01:34]}  Ref8 {[%clk 0:01:38]} 26. Re3 {[%clk 0:01:26]}  Rf5 {[%clk 0:01:36]} 27. g4 {[%clk 0:01:26]}  Rf7 {[%clk 0:01:31]} 28. Kg2 {[%clk 0:01:26]}  Kc7 {[%clk 0:01:31]} 29. a4 {[%clk 0:01:16]}  Ra8 {[%clk 0:01:30]} 30. Rf3 {[%clk 0:01:12]}  Rxf3 {[%clk 0:01:29]} 31. Kxf3 {[%clk 0:01:13]}  Bf8 {[%clk 0:01:30]} 32. Ke2 {[%clk 0:01:12]}  Bc5 {[%clk 0:01:28]} 33. f4 {[%clk 0:01:12]}  d4 {[%clk 0:00:52]} 34. cxd4 {[%clk 0:01:12]}  Bxd4 {[%clk 0:00:52]} 35. Ra2 {[%clk 0:01:12]}  Rd8 {[%clk 0:00:50]} 36. Rc2 {[%clk 0:01:09]}  c3 {[%clk 0:00:50]} 37. Kf3 {[%clk 0:01:06]}  Ra8 {[%clk 0:00:47]} 38. Ra2 {[%clk 0:01:02]}  Rd8 {[%clk 0:00:47]} 39. f5 {[%clk 0:00:59]}  Kd7 {[%clk 0:00:36]} 40. Ke4 {[%clk 0:00:59]}  Ke7 {[%clk 0:00:33]} 41. Rc2 {[%clk 0:00:53]}  Kf7 {[%clk 0:00:29]} 42. Bg3 {[%clk 0:00:51]}  Rd5 {[%clk 0:00:27]} 43. Rc1 {[%clk 0:00:48]}  Ke7 {[%clk 0:00:26]} 44. h4 {[%clk 0:00:45]}  Kf7 {[%clk 0:00:26]} 45. hxg5 {[%clk 0:00:45]}  hxg5 {[%clk 0:00:27]} 46. Rh1 {[%clk 0:00:43]}  Bc5 {[%clk 0:00:22]} 47. fxe6+ {[%clk 0:00:41]}  Kxe6 {[%clk 0:00:22]} 48. Rh6+ {[%clk 0:00:41]}  Ke7 {[%clk 0:00:12]} 49. Kxd5 {[%clk 0:00:42]}  c2 {[%clk 0:00:12]} 50. Rh7+ {[%clk 0:00:42]} 1-0


[Site "https://www.chess.com"]

[Event "Titled Tuesday Blitz November 01 Early 2022"]
[White "Faizrakhmanov, Ramil"]
[Black "Levitan, Caleb Levi"]
[WhiteFideId "24103209"]
[BlackFideId "14332620"]
[WhiteElo "2421"]
[BlackElo "1963"]
[Result "1-0"]
[Round "01"]
[TimeControl "180+1"]
[Date "2022.11.02"]
[WhiteClock "0:01:00"]
[BlackClock "0:00:08"]

1. d4 {[%clk 0:03:00]}  d5 {[%clk 0:02:57]} 2. c4 {[%clk 0:03:00]}  e6 {[%clk 0:02:57]} 3. Nf3 {[%clk 0:02:59]}  Nf6 {[%clk 0:02:57]} 4. Nc3 {[%clk 0:02:59]}  a6 {[%clk 0:02:57]} 5. cxd5 {[%clk 0:02:58]}  exd5 {[%clk 0:02:58]} 6. Bg5 {[%clk 0:02:58]}  Be6 {[%clk 0:02:58]} 7. e3 {[%clk 0:02:57]}  Nbd7 {[%clk 0:02:58]} 8. h3 {[%clk 0:02:57]}  Bd6 {[%clk 0:02:58]} 9. Bd3 {[%clk 0:02:57]}  c6 {[%clk 0:02:56]} 10. O-O {[%clk 0:02:53]}  h6 {[%clk 0:02:48]} 11. Bf4 {[%clk 0:02:51]}  Qc7 {[%clk 0:02:47]} 12. Qd2 {[%clk 0:02:49]}  O-O {[%clk 0:02:45]} 13. a3 {[%clk 0:02:48]}  Ne8 {[%clk 0:02:40]} 14. Rac1 {[%clk 0:02:45]}  Bxf4 {[%clk 0:02:37]} 15. exf4 {[%clk 0:02:46]}  Nd6 {[%clk 0:02:38]} 16. Qc2 {[%clk 0:02:33]}  Nf6 {[%clk 0:01:54]} 17. Ne5 {[%clk 0:02:31]}  Qc8 {[%clk 0:01:49]} 18. g4 {[%clk 0:02:25]}  h5 {[%clk 0:01:34]} 19. f5 {[%clk 0:02:18]}  Bd7 {[%clk 0:01:32]} 20. Rfe1 {[%clk 0:02:00]}  hxg4 {[%clk 0:01:31]} 21. hxg4 {[%clk 0:02:01]}  Re8 {[%clk 0:01:22]} 22. f3 {[%clk 0:02:00]}  Nc4 {[%clk 0:01:05]} 23. Nxc4 {[%clk 0:01:53]}  dxc4 {[%clk 0:01:05]} 24. Bxc4 {[%clk 0:01:53]}  Qc7 {[%clk 0:01:06]} 25. Qh2 {[%clk 0:01:39]}  Qb6 {[%clk 0:01:01]} 26. Qf2 {[%clk 0:01:38]}  Rad8 {[%clk 0:00:36]} 27. g5 {[%clk 0:01:27]}  Nh5 {[%clk 0:00:34]} 28. g6 {[%clk 0:01:22]}  Rxe1+ {[%clk 0:00:19]} 29. Rxe1 {[%clk 0:01:23]}  Nf4 {[%clk 0:00:17]} 30. gxf7+ {[%clk 0:01:22]}  Kf8 {[%clk 0:00:16]} 31. Qe3 {[%clk 0:01:21]}  Nh3+ {[%clk 0:00:10]} 32. Kg2 {[%clk 0:01:17]}  Qxb2+ {[%clk 0:00:06]} 33. Re2 {[%clk 0:01:14]}  Qxa3 {[%clk 0:00:07]} 34. Kxh3 {[%clk 0:01:03]}  Bxf5+ {[%clk 0:00:07]} 35. Kg2 {[%clk 0:01:02]}  Qd6 {[%clk 0:00:08]} 36. Qe8+ {[%clk 0:00:59]}  Rxe8 {[%clk 0:00:08]} 37. fxe8=Q# {[%clk 0:01:00]} 1-0


[Site "https://www.chess.com"]

[Event "Titled Tuesday Blitz November 01 Early 2022"]
[White "Fathy, Elameir"]
[Black "Donchenko, Alexander"]
[WhiteFideId "10600396"]
[BlackFideId "24603295"]
[WhiteElo "2311"]
[BlackElo "2572"]
[Result "0-1"]
[Round "01"]
[TimeControl "180+1"]
[Date "2022.11.01"]
[WhiteClock "0:00:01"]
[BlackClock "0:01:43"]

1. d4 {[%clk 0:02:59]}  Nf6 {[%clk 0:02:59]} 2. c4 {[%clk 0:02:59]}  e6 {[%clk 0:03:00]} 3. Nf3 {[%clk 0:02:59]}  b6 {[%clk 0:02:59]} 4. g3 {[%clk 0:02:59]}  Bb7 {[%clk 0:02:59]} 5. Bg2 {[%clk 0:02:58]}  Be7 {[%clk 0:02:58]} 6. O-O {[%clk 0:02:58]}  O-O {[%clk 0:02:59]} 7. Nc3 {[%clk 0:02:58]}  Ne4 {[%clk 0:02:59]} 8. Bd2 {[%clk 0:02:58]}  Bf6 {[%clk 0:02:58]} 9. Qc2 {[%clk 0:02:56]}  Nxd2 {[%clk 0:02:57]} 10. Qxd2 {[%clk 0:02:57]}  d6 {[%clk 0:02:54]} 11. e4 {[%clk 0:02:53]}  Nd7 {[%clk 0:02:53]} 12. Rad1 {[%clk 0:02:45]}  e5 {[%clk 0:02:50]} 13. dxe5 {[%clk 0:02:29]}  Nxe5 {[%clk 0:02:48]} 14. Nxe5 {[%clk 0:02:26]}  Bxe5 {[%clk 0:02:46]} 15. f4 {[%clk 0:02:13]}  Bxc3 {[%clk 0:02:46]} 16. Qxc3 {[%clk 0:02:12]}  Qe7 {[%clk 0:02:44]} 17. Rfe1 {[%clk 0:02:11]}  Rfe8 {[%clk 0:02:43]} 18. e5 {[%clk 0:01:57]}  Bxg2 {[%clk 0:02:41]} 19. exd6 {[%clk 0:01:47]}  Qd7 {[%clk 0:02:41]} 20. Kxg2 {[%clk 0:01:34]}  cxd6 {[%clk 0:02:39]} 21. Rxe8+ {[%clk 0:01:27]}  Rxe8 {[%clk 0:02:38]} 22. Qd3 {[%clk 0:01:24]}  Qc6+ {[%clk 0:02:36]} 23. Kg1 {[%clk 0:01:15]}  Qc5+ {[%clk 0:02:30]} 24. Kg2 {[%clk 0:00:51]}  h5 {[%clk 0:02:24]} 25. h4 {[%clk 0:00:41]}  Re3 {[%clk 0:02:21]} 26. Qd4 {[%clk 0:00:23]}  Qc6+ {[%clk 0:02:05]} 27. Qd5 {[%clk 0:00:17]}  Qe8 {[%clk 0:01:58]} 28. Rd2 {[%clk 0:00:16]}  Re1 {[%clk 0:01:44]} 29. b3 {[%clk 0:00:03]}  Qe3 {[%clk 0:01:43]} 30. Qa8+ {[%clk 0:00:02]}  Kh7 {[%clk 0:01:43]} 31. Qc8 {[%clk 0:00:01]} 0-1


[Site "https://www.chess.com"]

[Event "Titled Tuesday Blitz November 01 Early 2022"]
[White "Fier, Alexandr"]
[Black "Khamdamova, Afruza"]
[WhiteFideId "2107139"]
[BlackFideId "14210444"]
[WhiteElo "2607"]
[BlackElo "2018"]
[Result "0-1"]
[Round "01"]
[TimeControl "180+1"]
[Date "2022.11.02"]
[WhiteClock "0:00:11"]
[BlackClock "0:00:14"]

1. e4 {[%clk 0:00:20]}  e5 {[%clk 0:02:59]} 2. Nf3 {[%clk 0:00:21]}  Nf6 {[%clk 0:02:59]} 3. Bc4 {[%clk 0:00:22]}  Nc6 {[%clk 0:02:57]} 4. d3 {[%clk 0:00:22]}  Bc5 {[%clk 0:02:56]} 5. Bg5 {[%clk 0:00:23]}  h6 {[%clk 0:02:44]} 6. Bh4 {[%clk 0:00:23]}  d6 {[%clk 0:02:43]} 7. Bg3 {[%clk 0:00:24]}  O-O {[%clk 0:02:42]} 8. Nc3 {[%clk 0:00:25]}  Be6 {[%clk 0:02:36]} 9. Nd5 {[%clk 0:00:25]}  Bxd5 {[%clk 0:02:34]} 10. exd5 {[%clk 0:00:25]}  Ne7 {[%clk 0:02:33]} 11. d4 {[%clk 0:00:24]}  exd4 {[%clk 0:02:31]} 12. Nxd4 {[%clk 0:00:25]}  Nexd5 {[%clk 0:02:29]} 13. O-O {[%clk 0:00:26]}  Ne7 {[%clk 0:02:18]} 14. Nb3 {[%clk 0:00:26]}  Bb6 {[%clk 0:02:17]} 15. Qf3 {[%clk 0:00:27]}  Nc6 {[%clk 0:02:14]} 16. Bh4 {[%clk 0:00:25]}  Ne5 {[%clk 0:02:12]} 17. Qc3 {[%clk 0:00:26]}  Ne4 {[%clk 0:02:00]} 18. Bxd8 {[%clk 0:00:22]}  Nxc3 {[%clk 0:01:59]} 19. Be7 {[%clk 0:00:22]}  Rfe8 {[%clk 0:01:55]} 20. bxc3 {[%clk 0:00:22]}  Nxc4 {[%clk 0:01:51]} 21. Bh4 {[%clk 0:00:20]}  Re2 {[%clk 0:01:50]} 22. Rac1 {[%clk 0:00:19]}  Rae8 {[%clk 0:01:49]} 23. Bg3 {[%clk 0:00:19]}  Na3 {[%clk 0:01:45]} 24. Nd4 {[%clk 0:00:16]}  Bxd4 {[%clk 0:01:43]} 25. cxd4 {[%clk 0:00:15]}  Nxc2 {[%clk 0:01:41]} 26. d5 {[%clk 0:00:12]}  R8e7 {[%clk 0:01:38]} 27. h3 {[%clk 0:00:12]}  b6 {[%clk 0:01:30]} 28. a4 {[%clk 0:00:13]}  Nb4 {[%clk 0:01:30]} 29. Rc4 {[%clk 0:00:11]}  Nxd5 {[%clk 0:01:29]} 30. a5 {[%clk 0:00:12]}  Ra2 {[%clk 0:01:19]} 31. axb6 {[%clk 0:00:12]}  Nxb6 {[%clk 0:01:19]} 32. Rb4 {[%clk 0:00:12]}  a5 {[%clk 0:01:18]} 33. Rb5 {[%clk 0:00:12]}  Nd7 {[%clk 0:01:06]} 34. Rb7 {[%clk 0:00:11]}  Nc5 {[%clk 0:01:05]} 35. Ra7 {[%clk 0:00:12]}  a4 {[%clk 0:01:05]} 36. Rb1 {[%clk 0:00:12]}  Kh7 {[%clk 0:01:04]} 37. h4 {[%clk 0:00:12]}  Nb3 {[%clk 0:00:56]} 38. h5 {[%clk 0:00:12]}  Rd7 {[%clk 0:00:53]} 39. Re1 {[%clk 0:00:11]}  g6 {[%clk 0:00:51]} 40. Re8 {[%clk 0:00:11]}  gxh5 {[%clk 0:00:49]} 41. Bh4 {[%clk 0:00:12]}  d5 {[%clk 0:00:46]} 42. Raa8 {[%clk 0:00:11]}  d4 {[%clk 0:00:37]} 43. f3 {[%clk 0:00:08]}  d3 {[%clk 0:00:36]} 44. g4 {[%clk 0:00:09]}  hxg4 {[%clk 0:00:31]} 45. fxg4 {[%clk 0:00:10]}  f6 {[%clk 0:00:18]} 46. Rh8+ {[%clk 0:00:10]}  Kg6 {[%clk 0:00:18]} 47. Raf8 {[%clk 0:00:10]}  Rf7 {[%clk 0:00:17]} 48. Rhg8+ {[%clk 0:00:11]}  Rg7 {[%clk 0:00:17]} 49. Rxf6+ {[%clk 0:00:11]}  Kh7 {[%clk 0:00:17]} 50. Rd8 {[%clk 0:00:12]}  d2 {[%clk 0:00:16]} 51. g5 {[%clk 0:00:11]}  Ra1+ {[%clk 0:00:16]} 52. Kg2 {[%clk 0:00:11]}  hxg5 {[%clk 0:00:16]} 53. Bxg5 {[%clk 0:00:10]}  Rxg5+ {[%clk 0:00:16]} 54. Kh2 {[%clk 0:00:11]}  d1=Q {[%clk 0:00:15]} 55. Rh6+ {[%clk 0:00:11]}  Kxh6 {[%clk 0:00:16]} 56. Rh8+ {[%clk 0:00:12]}  Kg7 {[%clk 0:00:15]} 57. Rg8+ {[%clk 0:00:11]}  Kxg8 {[%clk 0:00:14]} 0-1


[Site "https://www.chess.com"]

[Event "Titled Tuesday Blitz November 01 Early 2022"]
[White "Gabrielian, Artur"]
[Black "Najdin, Danil"]
[WhiteFideId "4131002"]
[BlackFideId "4172426"]
[WhiteElo "2432"]
[BlackElo "2240"]
[Result "1-0"]
[Round "01"]
[TimeControl "180+1"]
[Date "2022.11.02"]
[WhiteClock "0:00:35"]
[BlackClock "0:00:22"]

1. e4 {[%clk 0:03:00]}  e5 {[%clk 0:02:55]} 2. Nf3 {[%clk 0:02:59]}  Nc6 {[%clk 0:02:55]} 3. Bc4 {[%clk 0:02:59]}  Nf6 {[%clk 0:02:53]} 4. d3 {[%clk 0:02:59]}  Bc5 {[%clk 0:02:52]} 5. Bg5 {[%clk 0:02:58]}  h6 {[%clk 0:02:51]} 6. Bh4 {[%clk 0:02:58]}  d6 {[%clk 0:02:49]} 7. c3 {[%clk 0:02:58]}  g5 {[%clk 0:02:44]} 8. Bg3 {[%clk 0:02:57]}  a6 {[%clk 0:02:40]} 9. Nbd2 {[%clk 0:02:54]}  Ba7 {[%clk 0:02:32]} 10. a4 {[%clk 0:02:48]}  Bg4 {[%clk 0:02:25]} 11. O-O {[%clk 0:02:40]}  Nh5 {[%clk 0:02:22]} 12. Kh1 {[%clk 0:02:39]}  Nf4 {[%clk 0:02:16]} 13. Bxf4 {[%clk 0:02:38]}  gxf4 {[%clk 0:02:15]} 14. h3 {[%clk 0:02:38]}  Bh5 {[%clk 0:02:07]} 15. b4 {[%clk 0:02:33]}  O-O {[%clk 0:01:59]} 16. b5 {[%clk 0:02:25]}  Ne7 {[%clk 0:01:56]} 17. bxa6 {[%clk 0:02:23]}  bxa6 {[%clk 0:01:56]} 18. Rb1 {[%clk 0:02:17]}  Bb6 {[%clk 0:01:53]} 19. Qc2 {[%clk 0:02:11]}  Kh8 {[%clk 0:01:50]} 20. d4 {[%clk 0:02:11]}  Ng6 {[%clk 0:01:34]} 21. Bd5 {[%clk 0:02:07]}  Rb8 {[%clk 0:01:32]} 22. Qd3 {[%clk 0:02:04]}  Nh4 {[%clk 0:01:12]} 23. Nxh4 {[%clk 0:02:00]}  Qxh4 {[%clk 0:01:10]} 24. Nf3 {[%clk 0:01:58]}  Qf6 {[%clk 0:01:05]} 25. Bc4 {[%clk 0:01:09]}  a5 {[%clk 0:00:59]} 26. dxe5 {[%clk 0:01:09]}  dxe5 {[%clk 0:00:58]} 27. Rb5 {[%clk 0:01:09]}  c6 {[%clk 0:00:54]} 28. Rbb1 {[%clk 0:00:51]}  Rbd8 {[%clk 0:00:48]} 29. Qe2 {[%clk 0:00:50]}  Bc5 {[%clk 0:00:48]} 30. Rb7 {[%clk 0:00:46]}  Rg8 {[%clk 0:00:48]} 31. Rg1 {[%clk 0:00:44]}  Qg6 {[%clk 0:00:39]} 32. Bxf7 {[%clk 0:00:37]}  Qxf7 {[%clk 0:00:29]} 33. Rxf7 {[%clk 0:00:37]}  Bxf7 {[%clk 0:00:30]} 34. Nxe5 {[%clk 0:00:37]}  Be6 {[%clk 0:00:27]} 35. Nxc6 {[%clk 0:00:35]}  Rdf8 {[%clk 0:00:25]} 36. Nd4 {[%clk 0:00:35]}  Bxd4 {[%clk 0:00:23]} 37. cxd4 {[%clk 0:00:36]}  f3 {[%clk 0:00:24]} 38. gxf3 {[%clk 0:00:36]}  Bxh3 {[%clk 0:00:22]} 39. Rg3 {[%clk 0:00:35]} 1-0


[Site "https://www.chess.com"]

[Event "Titled Tuesday Blitz November 01 Early 2022"]
[White "Garagulya, Konstantin"]
[Black "Yuan, Qingyu"]
[WhiteFideId "4128931"]
[BlackFideId "8609772"]
[WhiteElo "2329"]
[BlackElo "2359"]
[Result "0-1"]
[Round "01"]
[TimeControl "180+1"]
[Date "2022.11.02"]
[WhiteClock "0:01:04"]
[BlackClock "0:02:09"]

1. d4 {[%clk 0:01:49]}  d5 {[%clk 0:02:52]} 2. Nf3 {[%clk 0:01:49]}  Nf6 {[%clk 0:02:53]} 3. c4 {[%clk 0:01:50]}  e6 {[%clk 0:02:53]} 4. Bg5 {[%clk 0:01:49]}  dxc4 {[%clk 0:02:53]} 5. Qa4+ {[%clk 0:01:48]}  Nbd7 {[%clk 0:02:52]} 6. Nbd2 {[%clk 0:01:46]}  a6 {[%clk 0:02:47]} 7. Qxc4 {[%clk 0:01:47]}  b5 {[%clk 0:02:47]} 8. Qc2 {[%clk 0:01:47]}  Bb7 {[%clk 0:02:46]} 9. Nb3 {[%clk 0:01:46]}  Bb4+ {[%clk 0:02:43]} 10. Bd2 {[%clk 0:01:45]}  Be7 {[%clk 0:02:41]} 11. Rc1 {[%clk 0:01:44]}  Rc8 {[%clk 0:02:38]} 12. Na5 {[%clk 0:01:42]}  Be4 {[%clk 0:02:38]} 13. Qb3 {[%clk 0:01:39]}  c5 {[%clk 0:02:24]} 14. e3 {[%clk 0:01:32]}  c4 {[%clk 0:02:22]} 15. Qd1 {[%clk 0:01:31]}  O-O {[%clk 0:02:19]} 16. Be2 {[%clk 0:01:22]}  Bd5 {[%clk 0:02:16]} 17. O-O {[%clk 0:01:21]}  Ne4 {[%clk 0:02:15]} 18. b4 {[%clk 0:01:20]}  Bd6 {[%clk 0:02:09]} 19. Bc3 {[%clk 0:01:08]}  Nxc3 {[%clk 0:02:09]} 20. Rxc3 {[%clk 0:01:04]}  Bxb4 {[%clk 0:02:09]} 0-1


[Site "https://www.chess.com"]

[Event "Titled Tuesday Blitz November 01 Early 2022"]
[White "Garv Gaur"]
[Black "Deac, Bogdan-Daniel"]
[WhiteFideId "45030839"]
[BlackFideId "1226380"]
[WhiteElo "1960"]
[BlackElo "2648"]
[Result "0-1"]
[Round "01"]
[TimeControl "180+1"]
[Date "2022.11.01"]
[WhiteClock "0:00:04"]
[BlackClock "0:00:05"]

1. d4 {[%clk 0:03:00]}  g6 {[%clk 0:02:58]} 2. Nf3 {[%clk 0:03:00]}  Bg7 {[%clk 0:02:58]} 3. c4 {[%clk 0:02:59]}  d6 {[%clk 0:02:58]} 4. g3 {[%clk 0:03:00]}  Nd7 {[%clk 0:02:56]} 5. Bg2 {[%clk 0:03:00]}  e5 {[%clk 0:02:56]} 6. O-O {[%clk 0:03:01]}  Nh6 {[%clk 0:02:57]} 7. Nc3 {[%clk 0:02:52]}  O-O {[%clk 0:02:56]} 8. e4 {[%clk 0:02:52]}  f6 {[%clk 0:02:55]} 9. h3 {[%clk 0:02:51]}  Nf7 {[%clk 0:02:55]} 10. Re1 {[%clk 0:02:50]}  c6 {[%clk 0:02:53]} 11. Be3 {[%clk 0:02:50]}  f5 {[%clk 0:02:46]} 12. exf5 {[%clk 0:02:38]}  gxf5 {[%clk 0:02:45]} 13. dxe5 {[%clk 0:02:38]}  dxe5 {[%clk 0:02:44]} 14. Qc2 {[%clk 0:02:38]}  e4 {[%clk 0:02:38]} 15. Nd4 {[%clk 0:02:35]}  Nde5 {[%clk 0:02:38]} 16. Red1 {[%clk 0:02:29]}  Qf6 {[%clk 0:02:36]} 17. c5 {[%clk 0:02:11]}  Ng5 {[%clk 0:02:23]} 18. h4 {[%clk 0:02:06]}  Ne6 {[%clk 0:02:19]} 19. Nxe6 {[%clk 0:02:04]}  Bxe6 {[%clk 0:02:19]} 20. Bd4 {[%clk 0:02:03]}  Rad8 {[%clk 0:02:16]} 21. Ne2 {[%clk 0:02:03]}  Qf7 {[%clk 0:02:03]} 22. Nf4 {[%clk 0:02:02]}  Bxa2 {[%clk 0:01:30]} 23. Qc3 {[%clk 0:01:58]}  Rfe8 {[%clk 0:01:22]} 24. Kh1 {[%clk 0:01:01]}  Ng4 {[%clk 0:01:06]} 25. Kg1 {[%clk 0:00:53]}  Bb3 {[%clk 0:00:44]} 26. Rd2 {[%clk 0:00:46]}  a6 {[%clk 0:00:34]} 27. Bxg7 {[%clk 0:00:30]}  Rxd2 {[%clk 0:00:32]} 28. Qxd2 {[%clk 0:00:31]}  Qxg7 {[%clk 0:00:31]} 29. Re1 {[%clk 0:00:23]}  Bf7 {[%clk 0:00:21]} 30. Qd7 {[%clk 0:00:20]}  Bg6 {[%clk 0:00:19]} 31. Qd6 {[%clk 0:00:19]}  Ne5 {[%clk 0:00:15]} 32. h5 {[%clk 0:00:18]}  Bf7 {[%clk 0:00:13]} 33. h6 {[%clk 0:00:18]}  Qg5 {[%clk 0:00:13]} 34. Nh3 {[%clk 0:00:13]}  Qe7 {[%clk 0:00:11]} 35. Qd4 {[%clk 0:00:13]}  Rd8 {[%clk 0:00:10]} 36. Qc3 {[%clk 0:00:13]}  Rd3 {[%clk 0:00:10]} 37. Qc1 {[%clk 0:00:13]}  Qf6 {[%clk 0:00:09]} 38. Ng5 {[%clk 0:00:12]}  Qxh6 {[%clk 0:00:04]} 39. Qf4 {[%clk 0:00:07]}  Qf6 {[%clk 0:00:02]} 40. Bh3 {[%clk 0:00:04]}  Bg6 {[%clk 0:00:02]} 41. Nxe4 {[%clk 0:00:04]}  Qg7 {[%clk 0:00:02]} 42. Nd6 {[%clk 0:00:05]}  Nf3+ {[%clk 0:00:02]} 43. Kh1 {[%clk 0:00:03]}  Nxe1 {[%clk 0:00:02]} 44. Qg5 {[%clk 0:00:03]}  Qf8 {[%clk 0:00:02]} 45. Nxf5 {[%clk 0:00:03]}  Nf3 {[%clk 0:00:03]} 46. Ne7+ {[%clk 0:00:03]}  Kg7 {[%clk 0:00:03]} 47. Qe5+ {[%clk 0:00:04]}  Nxe5 {[%clk 0:00:02]} 48. Nf5+ {[%clk 0:00:04]}  Qxf5 {[%clk 0:00:03]} 49. Bxf5 {[%clk 0:00:03]}  Bxf5 {[%clk 0:00:04]} 50. g4 {[%clk 0:00:04]}  Be4+ {[%clk 0:00:04]} 51. Kh2 {[%clk 0:00:04]}  Nxg4+ {[%clk 0:00:05]} 52. Kg1 {[%clk 0:00:04]}  Rd1# {[%clk 0:00:05]} 0-1


[Site "https://www.chess.com"]

[Event "Titled Tuesday Blitz November 01 Early 2022"]
[White "Goryachkina, Aleksandra"]
[Black "Rios Escobar, Adan"]
[WhiteFideId "4147103"]
[BlackFideId "3403645"]
[WhiteElo "2484"]
[BlackElo "2373"]
[Result "1/2-1/2"]
[Round "01"]
[TimeControl "180+1"]
[Date "2022.11.02"]
[WhiteClock "0:00:03"]
[BlackClock "0:00:02"]

1. e4 {[%clk 0:02:59]}  c5 {[%clk 0:02:59]} 2. Nf3 {[%clk 0:02:59]}  d6 {[%clk 0:02:59]} 3. Bb5+ {[%clk 0:02:58]}  Nd7 {[%clk 0:02:58]} 4. Ba4 {[%clk 0:02:58]}  a6 {[%clk 0:02:49]} 5. c4 {[%clk 0:02:57]}  g6 {[%clk 0:02:44]} 6. O-O {[%clk 0:02:55]}  Bg7 {[%clk 0:02:45]} 7. Nc3 {[%clk 0:02:50]}  e5 {[%clk 0:02:42]} 8. a3 {[%clk 0:02:19]}  Ne7 {[%clk 0:02:35]} 9. b4 {[%clk 0:02:18]}  O-O {[%clk 0:02:29]} 10. Bxd7 {[%clk 0:02:07]}  Bxd7 {[%clk 0:02:26]} 11. bxc5 {[%clk 0:02:07]}  dxc5 {[%clk 0:02:26]} 12. d3 {[%clk 0:02:06]}  b5 {[%clk 0:02:10]} 13. Be3 {[%clk 0:02:05]}  Qc7 {[%clk 0:01:57]} 14. Rc1 {[%clk 0:01:59]}  Rfc8 {[%clk 0:01:48]} 15. Nd2 {[%clk 0:01:44]}  Qd6 {[%clk 0:01:45]} 16. Qe2 {[%clk 0:01:41]}  Nc6 {[%clk 0:01:33]} 17. Nd5 {[%clk 0:01:25]}  Nd4 {[%clk 0:01:32]} 18. Qd1 {[%clk 0:01:26]}  Rab8 {[%clk 0:01:23]} 19. f4 {[%clk 0:01:25]}  h5 {[%clk 0:01:02]} 20. Qe1 {[%clk 0:01:14]}  Bg4 {[%clk 0:00:59]} 21. Rf2 {[%clk 0:01:04]}  Be6 {[%clk 0:00:25]} 22. Rf1 {[%clk 0:00:41]}  Bxd5 {[%clk 0:00:25]} 23. exd5 {[%clk 0:00:38]}  bxc4 {[%clk 0:00:20]} 24. dxc4 {[%clk 0:00:36]}  Rb2 {[%clk 0:00:20]} 25. Bxd4 {[%clk 0:00:27]}  cxd4 {[%clk 0:00:14]} 26. Ne4 {[%clk 0:00:27]}  Qxa3 {[%clk 0:00:12]} 27. f5 {[%clk 0:00:21]}  Qe3+ {[%clk 0:00:06]} 28. Qxe3 {[%clk 0:00:20]}  dxe3 {[%clk 0:00:07]} 29. f6 {[%clk 0:00:19]}  Bh6 {[%clk 0:00:07]} 30. Rfe1 {[%clk 0:00:11]}  e2 {[%clk 0:00:07]} 31. Rc3 {[%clk 0:00:11]}  Bd2 {[%clk 0:00:05]} 32. Nxd2 {[%clk 0:00:08]}  Rxd2 {[%clk 0:00:06]} 33. Kf2 {[%clk 0:00:07]}  Kf8 {[%clk 0:00:06]} 34. Ke3 {[%clk 0:00:06]}  Rd4 {[%clk 0:00:07]} 35. Rxe2 {[%clk 0:00:05]}  Rdxc4 {[%clk 0:00:07]} 36. Rxc4 {[%clk 0:00:06]}  Rxc4 {[%clk 0:00:08]} 37. Ra2 {[%clk 0:00:06]}  Ke8 {[%clk 0:00:05]} 38. Rxa6 {[%clk 0:00:06]}  Rd4 {[%clk 0:00:06]} 39. Ra8+ {[%clk 0:00:06]}  Kd7 {[%clk 0:00:06]} 40. Ra7+ {[%clk 0:00:07]}  Kd6 {[%clk 0:00:04]} 41. Rxf7 {[%clk 0:00:07]}  Rxd5 {[%clk 0:00:03]} 42. Rg7 {[%clk 0:00:06]}  Ke6 {[%clk 0:00:03]} 43. Rxg6 {[%clk 0:00:06]}  Rd8 {[%clk 0:00:03]} 44. Rh6 {[%clk 0:00:06]}  Kf5 {[%clk 0:00:02]} 45. g3 {[%clk 0:00:06]}  Rf8 {[%clk 0:00:02]} 46. Rxh5+ {[%clk 0:00:05]}  Kxf6 {[%clk 0:00:02]} 47. Ke4 {[%clk 0:00:06]}  Re8 {[%clk 0:00:02]} 48. Rf5+ {[%clk 0:00:06]}  Kg6 {[%clk 0:00:01]} 49. Rxe5 {[%clk 0:00:06]}  Rh8 {[%clk 0:00:01]} 50. h4 {[%clk 0:00:06]}  Ra8 {[%clk 0:00:02]} 51. Kf4 {[%clk 0:00:06]}  Ra4+ {[%clk 0:00:03]} 52. Re4 {[%clk 0:00:07]}  Ra1 {[%clk 0:00:04]} 53. Re6+ {[%clk 0:00:06]}  Kh7 {[%clk 0:00:02]} 54. g4 {[%clk 0:00:06]}  Ra4+ {[%clk 0:00:02]} 55. Kf5 {[%clk 0:00:06]}  Ra5+ {[%clk 0:00:02]} 56. Re5 {[%clk 0:00:06]}  Ra8 {[%clk 0:00:03]} 57. g5 {[%clk 0:00:07]}  Rf8+ {[%clk 0:00:01]} 58. Kg4 {[%clk 0:00:07]}  Ra8 {[%clk 0:00:02]} 59. Re7+ {[%clk 0:00:07]}  Kg8 {[%clk 0:00:02]} 60. h5 {[%clk 0:00:06]}  Ra5 {[%clk 0:00:02]} 61. Kf4 {[%clk 0:00:05]}  Ra6 {[%clk 0:00:02]} 62. Re5 {[%clk 0:00:06]}  Ra4+ {[%clk 0:00:02]} 63. Kf5 {[%clk 0:00:06]}  Ra2 {[%clk 0:00:02]} 64. Rd5 {[%clk 0:00:06]}  Rf2+ {[%clk 0:00:02]} 65. Kg6 {[%clk 0:00:06]}  Rf8 {[%clk 0:00:02]} 66. Rd6 {[%clk 0:00:05]}  Ra8 {[%clk 0:00:03]} 67. h6 {[%clk 0:00:05]}  Kh8 {[%clk 0:00:03]} 68. Kf6 {[%clk 0:00:05]}  Rf8+ {[%clk 0:00:03]} 69. Ke7 {[%clk 0:00:05]}  Rg8 {[%clk 0:00:02]} 70. g6 {[%clk 0:00:04]}  Rf8 {[%clk 0:00:01]} 71. g7+ {[%clk 0:00:04]}  Kh7 {[%clk 0:00:02]} 72. Kxf8 {[%clk 0:00:03]} 1/2-1/2


[Site "https://www.chess.com"]